bitfinex/quotes_SOLUSD_20240717
["timestamp","ask_amount","ask_price","bid_price","bid_amount"]
[1721176129967,14.74,161.44,161.41,15.4878]
[1721176130177,14.74,161.44,161.42,1.2388435]
[1721176130848,14.74,161.45,161.44,6.1941]
[1721176131065,21.3221,161.5,161.45,6.1937]
[1721176131274,14.74,161.46,161.45,6.1937]
[1721176131646,14.74,161.46,161.44,6.1941]
[1721176131862,14.74,161.45,161.44,6.1941]
[1721176134466,14.74,161.48,161.44,1.23872005]
[1721176134669,21.3221,161.5,161.47,15.4823]
[1721176134862,14.74,161.48,161.47,15.4823]
[1721176135051,14.74,161.48,161.45,6.1937]
[1721176135257,14.74,161.46,161.45,6.1937]
[1721176135451,14.74,161.46,161.44,21.6794]
[1721176135665,14.74,161.45,161.44,21.6794]
[1721176138066,14.74,161.45,161.44,15.4853]
[1721176138392,14.74,161.45,161.42,6.1946]
[1721176138557,6.1933,161.47,161.43,6.1945]
[1721176138758,14.74,161.44,161.43,6.1945]
[1721176139880,21.3221,161.5,161.45,15.4843]
[1721176140078,14.74,161.46,161.45,15.4843]
[1721176140577,20.9334,161.46,161.42,15.4869]
[1721176140776,14.74,161.43,161.42,15.4869]
[1721176142370,14.74,161.43,161.42,21.6816]
[1721176143874,14.74,161.43,161.41,6.1953]
[1721176144178,14.74,161.42,161.4,6.1956]
[1721176144377,14.74,161.44,161.4,6.1956]
[1721176144378,14.74,161.41,161.4,6.1956]
[1721176144967,14.74,161.41,161.4,6.1957]
[1721176145563,14.74,161.42,161.41,6.1954]
[1721176145970,14.74,161.42,161.4,6.1956]
[1721176146172,14.74,161.41,161.4,6.1956]
[1721176148469,14.74,161.41,161.35,15.4934]
[1721176148681,58.96,161.44,161.38,6.1962]
[1721176148682,65.1545,161.44,161.38,6.1962]
[1721176148981,14.74,161.39,161.38,6.1962]
[1721176149178,14.74,161.4,161.39,6.1961]
[1721176150267,14.74,161.4,161.37,16.73089531]
[1721176150465,14.74,161.39,161.38,6.1965]
[1721176150666,14.74,161.4,161.39,6.196]
[1721176150885,58.96,161.44,161.4,6.1957]
[1721176151184,14.74,161.41,161.4,6.1957]
[1721176151389,14.74,161.41,161.39,15.4898]
[1721176151570,14.74,161.4,161.39,15.4898]
[1721176152372,14.74,161.4,161.39,21.6859]
[1721176152774,27.5514,161.45,161.4,6.1957]
[1721176152978,14.74,161.43,161.41,15.4879]
[1721176153376,14.74,161.43,161.41,21.6832]
[1721176153579,14.74,161.42,161.41,15.4879]
[1721176153970,14.74,161.43,161.41,15.4879]
[1721176154171,14.74,161.42,161.39,6.196]
[1721176154567,14.74,161.42,161.38,15.4909]
[1721176154568,14.74,161.41,161.38,15.4909]
[1721176154772,14.74,161.4,161.38,21.6871]
[1721176155372,14.74,161.4,161.39,6.1961]
[1721176155589,14.74,161.41,161.4,6.1957]
[1721176156186,14.74,161.41,161.38,21.687]
[1721176156396,14.74,161.39,161.38,21.687]
[1721176156897,14.74,161.4,161.39,6.196]
[1721176157393,14.74,161.42,161.41,6.1952]
[1721176157806,14.74,161.42,161.38,15.4909]
[1721176157976,14.74,161.4,161.38,15.4909]
[1721176158183,14.74,161.4,161.38,21.6871]
[1721176158411,14.74,161.39,161.38,21.6871]
[1721176159596,14.74,161.4,161.38,21.6871]
[1721176160296,15.3026,161.44,161.41,6.1951]
[1721176160501,14.74,161.42,161.4,21.6846]
[1721176160690,14.74,161.41,161.4,21.6846]
[1721176161105,14.74,161.41,161.4,15.4889]
[1721176162208,14.74,161.42,161.41,6.195]
[1721176162410,14.74,161.42,161.4,21.6846]
[1721176162582,14.74,161.41,161.4,21.6846]
[1721176163600,14.74,161.41,161.4,15.4889]
[1721176163909,14.74,161.41,161.39,6.196]
[1721176164115,14.74,161.4,161.38,6.1964]
[1721176164304,14.74,161.39,161.38,6.1964]
[1721176164488,14.74,161.4,161.38,6.1964]
[1721176165208,14.74,161.39,161.38,6.1964]
[1721176165400,6.1947,161.43,161.38,6.1964]
[1721176165584,14.74,161.4,161.38,6.1964]
[1721176167217,21.4969,161.44,161.39,6.196]
[1721176167386,14.74,161.41,161.39,6.196]
[1721176168497,14.74,161.4,161.39,6.196]
[1721176172491,14.74,161.4,161.38,6.1964]
[1721176172688,14.74,161.39,161.38,6.1964]
[1721176173804,14.74,161.39,161.37,21.6885]
[1721176174013,14.74,161.38,161.37,21.6885]
[1721176174508,14.74,161.38,161.34,46.4845]
[1721176174730,14.74,161.37,161.34,46.4845]
[1721176175006,14.74,161.37,161.36,6.1972]
[1721176176119,14.74,161.37,161.34,46.4845]
[1721176176120,14.74,161.37,161.34,15.4947]
[1721176176419,14.74,161.36,161.35,6.1974]
[1721176179309,14.74,161.36,161.33,0.8266379]
[1721176179610,14.74,161.34,161.33,7.0250379]
[1721176181215,14.74,161.35,161.34,6.198]
[1721176181913,14.74,161.35,161.33,7.0249379]
[1721176182116,14.74,161.34,161.33,7.0249379]
[1721176184407,14.74,161.34,161.33,0.8266379]
[1721176185513,14.74,161.34,161.33,7.0250379]
[1721176185905,14.74,161.34,161.33,0.8266379]
[1721176193422,6.1966,161.38,161.34,6.1979]
[1721176193604,14.74,161.35,161.34,6.1979]
[1721176194224,14.74,161.35,161.33,22.5206379]
[1721176195619,6.3174,161.39,161.35,6.1974]
[1721176195834,14.74,161.37,161.35,6.1974]
[1721176196017,14.74,161.36,161.34,6.1979]
[1721176196904,14.74,161.36,161.33,22.5206379]
[1721176197305,12.5136,161.39,161.34,7.43735783]
[1721176197620,14.74,161.36,161.34,6.1979]
[1721176197827,14.74,161.35,161.33,22.5206379]
[1721176198011,14.74,161.35,161.33,16.3223379]
[1721176198331,14.74,161.34,161.33,0.8266379]
[1721176199015,14.74,161.34,161.33,7.0250379]
[1721176200322,14.74,161.34,161.33,0.8266379]
[1721176201722,14.74,161.34,161.33,7.0250379]
[1721176201910,15.9251,161.38,161.34,15.4947]
[1721176202110,6.3174,161.39,161.34,15.4947]
[1721176202318,14.74,161.37,161.34,15.4947]
[1721176202710,15.4507,161.42,161.36,15.4927]
[1721176203120,14.74,161.39,161.36,15.4927]
[1721176203301,14.74,161.38,161.37,6.1965]
[1721176203811,6.6015,161.43,161.36,16.73203813]
[1721176203812,6.6015,161.43,161.39,15.49]
[1721176204013,6.6015,161.43,161.4,6.1956]
[1721176204204,14.74,161.41,161.39,21.686]
[1721176204408,14.74,161.4,161.39,15.49]
[1721176204823,14.74,161.4,161.38,6.1964]
[1721176205023,12.7962,161.43,161.39,6.1961]
[1721176205313,14.74,161.4,161.39,6.1961]
[1721176205626,14.74,161.41,161.39,6.1961]
[1721176206014,14.74,161.41,161.4,6.1957]
[1721176206927,14.74,161.42,161.4,6.1957]
[1721176207426,14.74,161.42,161.39,7.43511416]
[1721176207612,14.74,161.41,161.39,7.43511416]
[1721176208025,14.74,161.41,161.39,1.23911416]
[1721176209026,14.74,161.41,161.39,7.43521416]
[1721176209327,14.74,161.42,161.39,7.43521416]
[1721176209832,14.74,161.42,161.39,1.23911416]
[1721176210133,14.74,161.41,161.39,1.23911416]
[1721176210516,6.1951,161.42,161.39,1.23911416]
[1721176210517,14.74,161.4,161.39,1.23911416]
[1721176210837,14.74,161.4,161.38,21.687]
[1721176211012,14.74,161.4,161.38,15.4906]
[1721176211319,6.1949,161.43,161.38,15.4906]
[1721176211524,14.74,161.41,161.38,15.4906]
[1721176211707,14.74,161.41,161.38,21.687]
[1721176211916,14.74,161.4,161.38,15.4906]
[1721176212114,14.74,161.41,161.38,21.6871]
[1721176212632,14.74,161.4,161.38,21.6871]
[1721176213130,6.1947,161.43,161.39,6.1961]
[1721176213338,14.74,161.41,161.39,6.1961]
[1721176213506,14.74,161.41,161.36,20.937]
[1721176213714,14.74,161.4,161.35,30.2336]
[1721176214123,14.74,161.4,161.37,6.1966]
[1721176214325,14.74,161.4,161.38,7.43558112]
[1721176214525,14.74,161.41,161.38,7.43558112]
[1721176214714,14.74,161.42,161.39,6.196]
[1721176215916,14.74,161.41,161.38,7.43558112]
[1721176216215,14.74,161.41,161.38,7.43545153]
[1721176216836,14.74,161.41,161.39,6.1961]
[1721176217235,14.74,161.41,161.38,7.43555153]
[1721176217428,14.74,161.4,161.38,6.1964]
[1721176217826,6.1951,161.42,161.38,6.1964]
[1721176217827,14.74,161.41,161.38,6.1964]
[1721176218029,14.74,161.41,161.39,7.43499619]
[1721176218233,14.74,161.41,161.39,6.1959]
[1721176218835,14.74,161.41,161.37,15.4919]
[1721176218836,14.74,161.42,161.4,7.43479105]
[1721176219017,14.74,161.42,161.4,6.1957]
[1721176219338,16.1446,161.46,161.41,6.1954]
[1721176219536,16.1446,161.46,161.39,21.6855]
[1721176219537,14.74,161.43,161.39,21.6855]
[1721176219845,14.74,161.41,161.38,7.43533481]
[1721176220922,14.74,161.4,161.38,7.43533481]
[1721176221239,14.74,161.4,161.38,6.1963]
[1721176222430,6.6143,161.47,161.39,1.23914091]
[1721176222623,15.8268,161.5,161.44,6.1938]
[1721176222825,14.74,161.47,161.45,6.1936]
[1721176223127,22.0188,161.5,161.46,6.1934]
[1721176223318,14.74,161.48,161.46,6.1934]
[1721176224139,22.0188,161.5,161.46,6.1934]
[1721176224338,14.74,161.48,161.46,6.1934]
[1721176225249,14.74,161.48,161.45,1.23859804]
[1721176225426,14.74,161.46,161.44,22.9174342]
[1721176225755,14.74,161.47,161.45,6.1938]
[1721176226055,14.74,161.51,161.49,6.192]
[1721176226221,14.74,161.5,161.48,7.43099771]
[1721176226627,14.74,161.5,161.47,22.91380922]
[1721176228444,14.74,161.49,161.47,22.91380922]
[1721176230735,14.74,161.49,161.48,6.1927]
[1721176231650,14.74,161.5,161.48,6.1927]
[1721176234330,14.74,161.49,161.47,15.4824]
[1721176234731,0.61862048,161.52,161.48,1.23845459]
[1721176234951,14.74,161.51,161.49,6.1921]
[1721176235461,14.74,161.5,161.49,6.1921]
[1721176235831,14.74,161.51,161.49,6.1921]
[1721176236031,14.74,161.5,161.49,6.1921]
[1721176236541,0.61862048,161.52,161.49,15.4801]
[1721176236852,15.35862048,161.52,161.49,16.71838542]
[1721176237038,0.61862048,161.52,161.49,16.71838542]
[1721176237240,15.35862048,161.52,161.49,16.71838542]
[1721176237455,15.35862048,161.52,161.51,6.1915]
[1721176237634,15.35862048,161.52,161.5,6.1918]
[1721176238252,14.74,161.51,161.5,6.1918]
[1721176238430,14.74,161.51,161.49,22.91058542]
[1721176239532,14.74,161.5,161.49,15.4801]
[1721176239738,14.74,161.5,161.47,6.193]
[1721176239946,14.74,161.49,161.48,6.1927]
[1721176241159,14.74,161.49,161.43,15.4864]
[1721176241338,31.46202048,161.52,161.43,15.4864]
[1721176241339,14.74,161.45,161.44,6.1939]
[1721176241537,14.74,161.46,161.45,6.1938]
[1721176242541,12.5917,161.51,161.46,6.1931]
[1721176242845,14.74,161.47,161.46,6.1931]
[1721176243552,14.74,161.47,161.45,15.4838]
[1721176243755,14.74,161.46,161.45,21.6776]
[1721176243953,14.74,161.47,161.45,21.6776]
[1721176244461,14.74,161.46,161.45,21.6776]
[1721176244636,14.74,161.46,161.45,15.4838]
[1721176244833,14.74,161.46,161.45,21.6776]
[1721176245051,14.74,161.46,161.45,15.4838]
[1721176245254,14.74,161.46,161.43,6.1945]
[1721176245480,14.74,161.45,161.43,6.1945]
[1721176246740,6.1935,161.46,161.42,21.682]
[1721176246940,14.74,161.43,161.42,21.682]
[1721176248161,14.74,161.44,161.43,6.1946]
[1721176248540,14.74,161.44,161.42,21.6819]
[1721176248741,14.74,161.43,161.42,21.6819]
[1721176249358,14.74,161.44,161.43,6.1945]
[1721176251460,14.74,161.44,161.41,6.1953]
[1721176251644,14.74,161.42,161.41,6.1953]
[1721176253058,14.74,161.42,161.39,15.4897]
[1721176253365,14.74,161.41,161.4,6.1956]
[1721176254680,14.74,161.41,161.39,15.4897]
[1721176254961,6.1947,161.43,161.39,15.4897]
[1721176254962,14.74,161.4,161.39,15.4897]
[1721176255367,14.74,161.4,161.39,21.6858]
[1721176256568,14.74,161.4,161.39,15.4897]
[1721176257666,14.74,161.4,161.39,21.6858]
[1721176258253,14.74,161.41,161.4,6.1955]
[1721176259743,6.1943,161.44,161.39,15.4897]
[1721176259744,6.4691,161.46,161.45,6.1938]
[1721176259951,21.2091,161.46,161.43,15.4858]
[1721176260262,14.74,161.46,161.43,15.4858]
[1721176261046,14.74,161.44,161.4,21.6844]
[1721176261242,14.74,161.41,161.4,15.489]
[1721176261466,14.74,161.43,161.4,15.489]
[1721176261683,14.74,161.43,161.41,7.43413732]
[1721176261881,14.74,161.43,161.42,6.195]
[1721176262252,14.74,161.43,161.4,21.6844]
[1721176262477,14.74,161.43,161.41,6.1953]
[1721176262851,14.74,161.43,161.42,6.195]
[1721176263474,14.74,161.44,161.42,6.195]
[1721176264363,6.1927,161.48,161.43,6.1946]
[1721176264587,14.74,161.45,161.43,7.43336089]
[1721176264760,14.74,161.45,161.42,15.4869]
[1721176264761,14.74,161.45,161.42,21.6818]
[1721176264961,14.74,161.44,161.42,21.6818]
[1721176266389,14.74,161.44,161.43,6.1946]
[1721176266583,14.74,161.45,161.44,6.1942]
[1721176266796,6.5158,161.5,161.44,6.1942]
[1721176266797,14.74,161.46,161.44,6.1942]
[1721176267167,14.74,161.45,161.44,6.1942]
[1721176267499,14.74,161.48,161.44,15.4849]
[1721176267683,14.74,161.48,161.45,1.23863812]
[1721176267984,14.74,161.47,161.45,1.23863812]
[1721176268176,14.74,161.49,161.46,16.72182949]
[1721176268375,14.74,161.49,161.47,6.193]
[1721176268772,14.74,161.49,161.48,6.1927]
[1721176268976,14.74,161.5,161.48,6.1927]
[1721176269178,0.61862048,161.52,161.49,6.1922]
[1721176269403,0.61862048,161.52,161.5,6.1918]
[1721176269573,15.35862048,161.52,161.5,6.1918]
[1721176270171,15.35862048,161.52,161.49,7.43049917]
[1721176270809,0.61862048,161.52,161.5,15.479]
[1721176270969,0.61862048,161.52,161.51,1.23815729]
[1721176271369,0.61862048,161.52,161.51,7.42965729]
[1721176272681,0.61862048,161.52,161.5,15.479]
[1721176272884,15.35862048,161.52,161.5,15.479]
[1721176273103,14.74,161.51,161.49,6.1922]
[1721176273407,14.74,161.5,161.49,6.1922]
[1721176273979,14.74,161.51,161.49,6.1922]
[1721176274272,14.74,161.51,161.5,6.1919]
[1721176274489,15.35862048,161.52,161.51,6.1915]
[1721176274870,15.35862048,161.52,161.49,21.6726]
[1721176275071,14.74,161.51,161.49,21.6726]
[1721176275492,14.74,161.51,161.5,6.1919]
[1721176275990,0.61862048,161.52,161.51,6.1915]
[1721176278784,0.61862048,161.52,161.51,20.9315]
[1721176279497,0.61862048,161.52,161.51,6.1915]
[1721176281792,0.61862048,161.52,161.51,20.9315]
[1721176283291,0.61862048,161.52,161.51,21.2715]
[1721176286387,0.61862048,161.52,161.51,36.925]
[1721176286609,0.61862048,161.52,161.51,51.665]
[1721176286904,0.61862048,161.52,161.51,36.925]
[1721176287881,0.61862048,161.52,161.51,121.2328]
[1721176288088,0.61862048,161.52,161.51,96.4928]
[1721176288383,0.61862048,161.52,161.51,86.4928]
[1721176289812,0.61862048,161.52,161.51,67.7128]
[1721176290021,0.61862048,161.52,161.51,6.1915]
[1721176293937,0.61862048,161.52,161.51,7.42951424]
[1721176294445,0.61862048,161.52,161.51,22.16951424]
[1721176294649,0.61862048,161.52,161.51,22.50951424]
[1721176297127,0.61862048,161.52,161.51,51.11951424]
[1721176297320,0.61862048,161.52,161.51,49.8815]
[1721176298235,0.61862048,161.52,161.51,51.11920006]
[1721176298623,0.61862048,161.52,161.51,49.8815]
[1721176299608,0.61862048,161.52,161.51,80.8393]
[1721176299929,0.61862048,161.52,161.51,82.07695895]
[1721176300233,2.048e-05,161.52,161.51,96.81695895]
[1721176300736,2.048e-05,161.52,161.51,95.5793]
[1721176301620,2.048e-05,161.52,161.51,80.8393]
[1721176302331,2.048e-05,161.52,161.51,37.4893]
[1721176302524,2.048e-05,161.52,161.51,52.2293]
[1721176303125,2.048e-05,161.52,161.51,51.8893]
[1721176304329,2.048e-05,161.52,161.51,52.0593]
[1721176304518,2.048e-05,161.52,161.51,52.2293]
[1721176305832,2.048e-05,161.52,161.51,37.1493]
[1721176306039,2.048e-05,161.52,161.51,37.3193]
[1721176306359,2.048e-05,161.52,161.51,37.4893]
[1721176306528,2.048e-05,161.52,161.51,37.3193]
[1721176306726,2.048e-05,161.52,161.51,6.1915]
[1721176309453,2.048e-05,161.52,161.51,37.1493]
[1721176309633,2.048e-05,161.52,161.51,38.38727224]
[1721176310248,2.048e-05,161.52,161.51,37.1493]
[1721176310751,2.048e-05,161.52,161.51,37.4893]
[1721176311134,2.048e-05,161.52,161.51,37.1493]
[1721176312031,2.048e-05,161.52,161.51,53.29727273]
[1721176312231,2.048e-05,161.52,161.51,53.46727273]
[1721176317450,2.048e-05,161.52,161.51,52.2293]
[1721176319060,2.048e-05,161.52,161.51,37.4893]
[1721176319356,2.048e-05,161.52,161.51,52.2293]
[1721176319857,2.048e-05,161.52,161.51,37.3193]
[1721176320028,2.048e-05,161.52,161.51,37.1493]
[1721176320458,2.048e-05,161.52,161.51,51.8893]
[1721176321657,2.048e-05,161.52,161.51,37.1493]
[1721176322257,2.048e-05,161.52,161.51,53.1272748]
[1721176322839,2.048e-05,161.52,161.51,51.8893]
[1721176323260,2.048e-05,161.52,161.51,53.46720219]
[1721176326947,2.048e-05,161.52,161.51,82.07720219]
[1721176328850,2.048e-05,161.52,161.51,80.8393]
[1721176329451,2.048e-05,161.52,161.51,62.2293]
[1721176329659,2.048e-05,161.52,161.51,52.2293]
[1721176330458,2.048e-05,161.52,161.51,37.4893]
[1721176330663,2.048e-05,161.52,161.51,52.2293]
[1721176330856,2.048e-05,161.52,161.51,53.46719116]
[1721176331364,2.048e-05,161.52,161.51,53.46713974]
[1721176332157,2.048e-05,161.52,161.51,72.07713974]
[1721176333667,2.048e-05,161.52,161.51,70.8393]
[1721176333869,2.048e-05,161.52,161.51,52.2293]
[1721176334373,2.048e-05,161.52,161.51,53.46707184]
[1721176334754,2.048e-05,161.52,161.51,52.2293]
[1721176338552,2.048e-05,161.52,161.51,53.46707519]
[1721176339288,2.048e-05,161.52,161.51,72.07707519]
[1721176339856,2.048e-05,161.52,161.51,52.2293]
[1721176341750,2.048e-05,161.52,161.51,72.07708111]
[1721176343183,2.048e-05,161.52,161.51,86.81708111]
[1721176343359,15.3573,161.61,161.6,21.6583]
[1721176343564,6.3966,161.63,161.62,6.1873]
[1721176343762,6.3966,161.63,161.61,6.1876]
[1721176343959,21.1366,161.63,161.6,15.4702]
[1721176344294,6.3966,161.63,161.62,6.1873]
[1721176345081,6.3966,161.63,161.61,6.1877]
[1721176345304,15.2921,161.65,161.64,21.6529]
[1721176345585,15.2921,161.65,161.64,15.4664]
[1721176345991,30.0321,161.65,161.6,15.4695]
[1721176346162,14.74,161.61,161.6,15.4695]
[1721176346368,14.74,161.61,161.59,15.4709]
[1721176346581,15.2921,161.65,161.6,1.23748739]
[1721176346783,14.74,161.61,161.59,15.4709]
[1721176346983,6.1058,161.61,161.56,6.1894]
[1721176347165,14.74,161.57,161.56,6.1896]
[1721176347692,14.74,161.57,161.53,18.61]
[1721176347693,6.1058,161.61,161.59,6.1882]
[1721176348066,14.74,161.6,161.59,6.1882]
[1721176348263,14.74,161.6,161.59,7.4257487]
[1721176348672,14.74,161.6,161.59,6.1882]
[1721176349285,29.48,161.6,161.58,15.4717]
[1721176349592,14.74,161.59,161.58,21.6605]
[1721176349974,14.74,161.59,161.58,15.4717]
[1721176350180,14.74,161.59,161.58,21.6605]
[1721176350383,14.74,161.59,161.58,15.4717]
[1721176350597,14.74,161.59,161.55,6.1897]
[1721176350788,14.74,161.56,161.55,7.4277091]
[1721176351396,14.74,161.56,161.55,6.19]
[1721176351597,14.74,161.56,161.55,7.42782179]
[1721176351992,14.74,161.56,161.55,7.76782179]
[1721176352192,6.1058,161.61,161.57,15.4723]
[1721176352491,14.74,161.58,161.57,21.6615]
[1721176353082,14.74,161.58,161.55,6.5297]
[1721176353317,14.74,161.56,161.55,6.1897]
[1721176353503,14.74,161.56,161.53,21.6668]
[1721176353682,14.74,161.54,161.53,21.6668]
[1721176353886,29.48,161.54,161.51,6.1914]
[1721176354188,14.74,161.52,161.51,6.1914]
[1721176354599,29.48,161.52,161.51,6.1914]
[1721176354997,29.48,161.52,161.49,21.6721]
[1721176355197,14.74,161.5,161.49,15.4802]
[1721176356186,14.74,161.5,161.49,21.6725]
[1721176357388,6.6634,161.55,161.53,6.1906]
[1721176357594,14.74,161.54,161.53,6.1906]
[1721176357916,14.74,161.54,161.52,21.6687]
[1721176358109,14.74,161.53,161.52,21.6687]
[1721176359905,29.48,161.53,161.49,15.4808]
[1721176360107,6.6634,161.55,161.5,1.23812866]
[1721176360307,6.6634,161.55,161.5,7.43002866]
[1721176360308,14.74,161.51,161.5,7.43002866]
[1721176362707,14.74,161.51,161.5,6.1919]
[1721176363202,14.74,161.51,161.49,21.673]
[1721176363395,14.74,161.5,161.49,21.673]
[1721176363617,14.74,161.5,161.49,15.4808]
[1721176363822,14.74,161.5,161.42,24.74]
[1721176363823,14.74,161.5,161.46,21.6766]
[1721176364034,58.96,161.52,161.43,15.4865]
[1721176364210,58.96,161.52,161.44,6.1939]
[1721176364211,6.1919,161.5,161.44,6.1939]
[1721176364415,14.74,161.45,161.44,6.1939]
[1721176364603,6.6359,161.51,161.47,6.1928]
[1721176364805,14.74,161.48,161.46,21.6765]
[1721176365016,6.6359,161.51,161.46,15.4831]
[1721176365017,14.74,161.47,161.46,15.4831]
[1721176365218,14.74,161.47,161.43,15.4864]
[1721176365409,14.74,161.44,161.43,21.681]
[1721176366211,12.8278,161.51,161.43,21.681]
[1721176366212,12.8278,161.51,161.45,6.1935]
[1721176366406,29.51,161.48,161.46,6.1931]
[1721176366925,29.51,161.48,161.45,21.6775]
[1721176367626,29.51,161.48,161.46,6.1933]
[1721176368022,29.51,161.48,161.46,7.43182605]
[1721176368228,6.6359,161.51,161.47,15.4821]
[1721176368527,29.51,161.5,161.45,6.1937]
[1721176368726,29.51,161.5,161.44,15.4853]
[1721176368918,29.51,161.47,161.45,6.1937]
[1721176369117,29.51,161.47,161.44,15.4853]
[1721176369118,29.51,161.47,161.46,6.1934]
[1721176369512,6.6359,161.51,161.47,6.1927]
[1721176369721,29.51,161.5,161.47,7.43111384]
[1721176369916,29.51,161.5,161.47,6.1927]
[1721176370315,29.51,161.5,161.46,15.4828]
[1721176370819,35.702,161.5,161.44,6.1942]
[1721176371226,35.702,161.5,161.45,6.1938]
[1721176371535,29.51,161.5,161.45,6.1938]
[1721176372434,29.51,161.5,161.43,21.6803]
[1721176372619,35.7021,161.5,161.43,21.6803]
[1721176373020,29.51,161.47,161.41,6.1951]
[1721176373231,29.51,161.47,161.42,6.1949]
[1721176373429,35.7031,161.47,161.4,21.6843]
[1721176373633,35.7031,161.47,161.41,6.1953]
[1721176373826,29.51,161.47,161.42,7.43379838]
[1721176374027,29.51,161.47,161.42,6.195]
[1721176374228,6.0114,161.46,161.41,6.1953]
[1721176374627,29.51,161.44,161.41,6.1953]
[1721176375325,29.51,161.44,161.4,21.6846]
[1721176376249,29.51,161.44,161.41,6.1953]
[1721176377123,29.51,161.44,161.4,21.6846]
[1721176378155,29.51,161.44,161.41,7.43411351]
[1721176378663,29.51,161.44,161.42,6.1949]
[1721176379533,29.51,161.44,161.41,7.43415036]
[1721176380239,29.51,161.44,161.42,6.1949]
[1721176380445,29.51,161.44,161.41,6.1953]
[1721176380955,29.51,161.44,161.4,21.6845]
[1721176381861,29.51,161.41,161.37,21.6886]
[1721176382052,29.51,161.41,161.38,6.1964]
[1721176382563,16.5348,161.43,161.39,15.4896]
[1721176382864,16.5348,161.43,161.4,6.1957]
[1721176383242,6.0114,161.46,161.44,6.1942]
[1721176383441,6.0114,161.46,161.42,7.43359606]
[1721176383641,6.0114,161.46,161.43,7.4331965]
[1721176384054,6.0114,161.46,161.42,6.195]
[1721176384361,6.0114,161.46,161.43,7.43319807]
[1721176384549,29.51,161.47,161.43,1.23869807]
[1721176384754,29.51,161.47,161.46,6.1934]
[1721176385068,29.51,161.47,161.45,21.6779]
[1721176385282,6.1936,161.46,161.41,15.4876]
[1721176385442,35.7032,161.47,161.41,21.6829]
[1721176385642,35.7032,161.47,161.42,1.23872569]
[1721176385866,35.7032,161.47,161.41,15.4876]
[1721176385867,6.1935,161.46,161.41,15.4876]
[1721176386644,29.51,161.44,161.41,15.4876]
[1721176387064,35.7043,161.44,161.38,21.6874]
[1721176387657,29.51,161.41,161.38,21.6874]
[1721176387858,29.51,161.41,161.39,7.43506029]
[1721176388364,29.51,161.41,161.38,15.491]
[1721176389259,29.51,161.41,161.39,1.23909395]
[1721176389579,29.51,161.41,161.38,15.491]
[1721176390082,29.51,161.41,161.36,6.197]
[1721176390579,29.51,161.38,161.36,6.197]
[1721176390960,29.51,161.38,161.35,15.494]
[1721176391376,29.51,161.38,161.34,6.1978]
[1721176391665,29.51,161.38,161.33,0.8266379]
[1721176392050,29.51,161.35,161.33,0.8266379]
[1721176393253,6.1572,161.34,161.33,0.8266379]
[1721176393460,6.1572,161.34,161.29,15.4999]
[1721176393772,6.1572,161.34,161.28,6.2003]
[1721176393773,29.51,161.3,161.28,6.2003]
[1721176394357,29.51,161.3,161.26,15.5028]
[1721176394685,29.51,161.3,161.28,6.2002]
[1721176395859,29.51,161.3,161.29,7.4399192]
[1721176396063,29.51,161.33,161.32,6.1988]
[1721176396266,6.1572,161.34,161.3,15.4982]